bitfinex/quotes_BTCUSD_20250608
["timestamp","ask_amount","ask_price","bid_price","bid_amount"]
[1749352834934,1.13964365,105550.0,105540.0,0.04009319]
[1749352835162,1.13964365,105550.0,105540.0,0.0312148]
[1749352835391,1.13964365,105550.0,105540.0,0.04009318]
[1749352836425,1.13964365,105550.0,105540.0,0.0312148]
[1749352836639,1.13964365,105550.0,105540.0,0.04009415]
[1749352836845,1.13964365,105550.0,105540.0,0.0312148]
[1749352837046,1.13964365,105550.0,105540.0,0.04009413]
[1749352837266,1.13964365,105550.0,105540.0,0.04009416]
[1749352838289,1.13964365,105550.0,105540.0,0.04009411]
[1749352838932,1.13964365,105550.0,105540.0,0.0312148]
[1749352839133,1.13964365,105550.0,105540.0,0.04009411]
[1749352839934,1.13964365,105550.0,105540.0,0.0312148]
[1749352840321,1.13964365,105550.0,105540.0,0.04009482]
[1749352840492,1.13964365,105550.0,105540.0,0.0312148]
[1749352840697,1.13964365,105550.0,105540.0,0.04010291]
[1749352841777,1.13964365,105550.0,105540.0,0.04010294]
[1749352841982,1.13964365,105550.0,105540.0,0.0312148]
[1749352842189,1.13964365,105550.0,105540.0,0.04010294]
[1749352842398,1.13964365,105550.0,105540.0,0.04010296]
[1749352842989,1.13964365,105550.0,105540.0,0.0312148]
[1749352843389,1.13964365,105550.0,105540.0,0.04010296]
[1749352843616,1.13964365,105550.0,105540.0,0.0312148]
[1749352844021,1.13964365,105550.0,105540.0,0.04010296]
[1749352844228,1.13964365,105550.0,105540.0,0.0312148]
[1749352844428,1.13964365,105550.0,105540.0,0.04010296]
[1749352845132,1.13964365,105550.0,105540.0,0.04010307]
[1749352845338,1.13964365,105550.0,105540.0,0.04010308]
[1749352845552,1.13964365,105550.0,105540.0,0.04010309]
[1749352845759,1.13964365,105550.0,105540.0,0.04010312]
[1749352845937,1.13964365,105550.0,105540.0,0.0312148]
[1749352846176,1.13964365,105550.0,105540.0,0.04010306]
[1749352847251,1.13964365,105550.0,105540.0,0.0312148]
[1749352847452,1.13964365,105550.0,105540.0,0.04010308]
[1749352847652,1.13964365,105550.0,105540.0,0.04010306]
[1749352848447,1.13964365,105550.0,105540.0,0.0312148]
[1749352848608,1.13964365,105550.0,105540.0,0.04010304]
[1749352848788,1.13964365,105550.0,105540.0,0.0312148]
[1749352848991,1.13964365,105550.0,105540.0,0.04010306]
[1749352849187,1.13964365,105550.0,105540.0,0.0312148]
[1749352849401,1.13964365,105550.0,105540.0,0.04010306]
[1749352849626,1.13956365,105550.0,105540.0,0.04010306]
[1749352849853,1.13956365,105550.0,105540.0,0.04010299]
[1749352850057,1.13956365,105550.0,105540.0,0.04010297]
[1749352850397,1.13956365,105550.0,105540.0,0.0312148]
[1749352850596,1.13956365,105550.0,105540.0,0.04010293]
[1749352850780,1.13956365,105550.0,105540.0,0.04010301]
[1749352851190,1.13956365,105550.0,105540.0,0.04010312]
[1749352851414,1.13956365,105550.0,105540.0,0.04010295]
[1749352851704,1.13956365,105550.0,105540.0,0.04010296]
[1749352851862,1.13956365,105550.0,105540.0,0.04010294]
[1749352852197,1.13956365,105550.0,105540.0,0.0312148]
[1749352853003,1.13956365,105550.0,105540.0,0.04010301]
[1749352853206,1.13956365,105550.0,105540.0,0.040103]
[1749352853640,1.13956365,105550.0,105540.0,0.04010291]
[1749352853853,1.13956365,105550.0,105540.0,0.04010292]
[1749352853999,1.13956365,105550.0,105540.0,0.04010288]
[1749352854208,1.13956365,105550.0,105540.0,0.04010286]
[1749352854855,1.13956365,105550.0,105540.0,0.0312148]
[1749352855052,1.13956365,105550.0,105540.0,0.0401028]
[1749352855253,1.13956365,105550.0,105540.0,0.04010278]
[1749352855452,1.13956365,105550.0,105540.0,0.0312148]
[1749352855872,1.13956365,105550.0,105540.0,0.04010282]
[1749352856087,1.13956365,105550.0,105540.0,0.0312148]
[1749352856293,1.13956365,105550.0,105540.0,0.04010278]
[1749352856495,1.13956365,105550.0,105540.0,0.0312148]
[1749352856696,1.13956365,105550.0,105540.0,0.04010279]
[1749352856937,1.13956365,105550.0,105540.0,0.04010282]
[1749352857305,1.13956365,105550.0,105540.0,0.0312148]
[1749352857508,1.13956365,105550.0,105540.0,0.04010282]
[1749352858142,1.13956365,105550.0,105540.0,0.04010287]
[1749352858341,1.13956365,105550.0,105540.0,0.0312148]
[1749352858752,1.13956365,105550.0,105540.0,0.04010287]
[1749352858987,1.13956365,105550.0,105540.0,0.0312148]
[1749352859196,1.13956365,105550.0,105540.0,0.04010287]
[1749352859612,1.13956365,105550.0,105540.0,0.0312148]
[1749352860141,1.13956365,105550.0,105540.0,0.04010287]
[1749352860346,1.13956365,105550.0,105540.0,0.0312148]
[1749352860545,1.13956365,105550.0,105540.0,0.04010301]
[1749352860755,1.13956365,105550.0,105540.0,0.0312148]
[1749352860952,1.16803965,105550.0,105540.0,0.04010301]
[1749352861399,1.16803965,105550.0,105540.0,0.0312148]
[1749352879622,1.17469019,105550.0,105540.0,0.0312148]
[1749352880239,1.16803965,105550.0,105540.0,0.0312148]
[1749352880438,1.17469019,105550.0,105540.0,0.0312148]
[1749352881279,1.16803965,105550.0,105540.0,0.0312148]
[1749352881487,1.17468899,105550.0,105540.0,0.0312148]
[1749352881689,1.16803965,105550.0,105540.0,0.0312148]
[1749352882312,1.17468898,105550.0,105540.0,0.0312148]
[1749352882515,1.27108844,105550.0,105540.0,0.0312148]
[1749352883062,1.27108844,105550.0,105540.0,0.04010144]
[1749352883267,1.26443913,105550.0,105540.0,0.04010144]
[1749352883446,1.27108844,105550.0,105540.0,0.0312148]
[1749352883677,1.27108844,105550.0,105540.0,0.04010144]
[1749352884116,1.27108844,105550.0,105540.0,0.0312148]
[1749352884330,1.27108844,105550.0,105540.0,0.04010145]
[1749352884769,1.26443913,105550.0,105540.0,0.04010188]
[1749352885243,1.27108877,105550.0,105540.0,0.0312148]
[1749352885466,1.27108867,105550.0,105540.0,0.04010188]
[1749352885696,1.26443913,105550.0,105540.0,0.0312148]
[1749352885933,1.55756857,105550.0,105540.0,0.0312148]
[1749352886183,1.55756857,105550.0,105540.0,0.04010188]
[1749352886421,1.55756858,105550.0,105540.0,0.04010188]
[1749352886931,1.55091913,105550.0,105540.0,0.04010188]
[1749352887161,1.55756847,105550.0,105540.0,0.04010188]
[1749352887422,1.55756748,105550.0,105540.0,0.04010188]
[1749352887653,1.55756675,105550.0,105540.0,0.04010188]
[1749352888536,1.55756687,105550.0,105540.0,0.0312148]
[1749352888745,1.55756688,105550.0,105540.0,0.0312148]
[1749352888960,1.5575669,105550.0,105540.0,0.04010203]
[1749352889158,1.55091913,105550.0,105540.0,0.04010203]
[1749352889677,1.55756689,105550.0,105540.0,0.04010203]
[1749352890104,1.55091913,105550.0,105540.0,0.04010203]
[1749352890313,1.55756692,105550.0,105540.0,0.0312148]
[1749352890941,1.55756692,105550.0,105540.0,0.04010203]
[1749352891154,1.55091913,105550.0,105540.0,0.04010203]
[1749352891372,1.55756692,105550.0,105540.0,0.04010203]
[1749352891765,1.55756692,105550.0,105540.0,0.04010218]
[1749352891966,1.55756692,105550.0,105540.0,0.0312148]
[1749352892191,1.55091913,105550.0,105540.0,0.04010218]
[1749352892396,1.55756704,105550.0,105540.0,0.04010218]
[1749352892826,1.55091913,105550.0,105540.0,0.04010218]
[1749352893025,1.55756704,105550.0,105540.0,0.04010218]
[1749352893373,1.55756704,105550.0,105540.0,0.0312148]
[1749352893594,1.55756704,105550.0,105540.0,0.04010218]
[1749352893797,1.55756704,105550.0,105540.0,0.04010233]
[1749352894026,1.55756715,105550.0,105540.0,0.0312148]
[1749352894229,1.55756715,105550.0,105540.0,0.04010233]
[1749352894489,1.55091913,105550.0,105540.0,0.04010233]
[1749352894656,1.55756715,105550.0,105540.0,0.0312148]
[1749352894860,1.55091913,105550.0,105540.0,0.0312148]
[1749352895024,1.55756715,105550.0,105540.0,0.04010233]
[1749352895401,1.55091913,105550.0,105540.0,0.04010233]
[1749352896030,1.55091913,105550.0,105540.0,0.0312148]
[1749352896233,1.55756715,105550.0,105540.0,0.0312148]
[1749352896649,1.55756715,105550.0,105540.0,0.04010233]
[1749352897067,1.55756716,105550.0,105540.0,0.04010233]
[1749352897462,1.55091913,105550.0,105540.0,0.0312148]
[1749352897672,1.55756716,105550.0,105540.0,0.0312148]
[1749352897814,1.55756716,105550.0,105540.0,0.04010233]
[1749352898020,1.55756747,105550.0,105540.0,0.0312148]
[1749352898235,1.55756747,105550.0,105540.0,0.04010274]
[1749352898904,1.55756747,105550.0,105540.0,0.0401029]
[1749352899121,1.5575676,105550.0,105540.0,0.0401029]
[1749352899582,1.5575676,105550.0,105540.0,0.0312148]
[1749352899803,1.5575676,105550.0,105540.0,0.0401029]
[1749352900660,1.55756764,105550.0,105540.0,0.04010303]
[1749352901150,1.55091913,105550.0,105540.0,0.0312148]
[1749352901323,1.55091913,105550.0,105540.0,0.04010303]
[1749352901561,1.55091913,105550.0,105540.0,0.0312148]
[1749352901769,1.55756741,105550.0,105540.0,0.04010303]
[1749352902778,1.55091913,105550.0,105540.0,0.04010303]
[1749352902983,1.55756869,105550.0,105540.0,0.0312148]
[1749352903189,1.55756869,105550.0,105540.0,0.04010472]
[1749352903398,1.5575687,105550.0,105540.0,0.04010472]
[1749352903815,1.5575687,105550.0,105540.0,0.0312148]
[1749352904012,1.5575687,105550.0,105540.0,0.04010472]
[1749352904387,1.55091913,105550.0,105540.0,0.0312148]
[1749352904594,1.55091913,105550.0,105540.0,0.04010472]
[1749352905003,1.55756868,105550.0,105540.0,0.04010472]
[1749352906089,1.55091913,105550.0,105540.0,0.0312148]
[1749352906293,1.55756869,105550.0,105540.0,0.0312148]
[1749352906653,1.55091913,105550.0,105540.0,0.0312148]
[1749352906919,1.55756869,105550.0,105540.0,0.04010472]
[1749352907905,1.55091913,105550.0,105540.0,0.04010472]
[1749352908103,1.55756869,105550.0,105540.0,0.04010472]
[1749352908306,1.55091913,105550.0,105540.0,0.04010472]
[1749352908507,1.5575687,105550.0,105540.0,0.0312148]
[1749352908712,1.55091913,105550.0,105540.0,0.04010472]
[1749352908867,1.5575687,105550.0,105540.0,0.0312148]
[1749352909073,1.55091913,105550.0,105540.0,0.04010472]
[1749352909291,1.5575687,105550.0,105540.0,0.0312148]
[1749352909564,1.55756872,105550.0,105540.0,0.0312148]
[1749352909874,1.55091913,105550.0,105540.0,0.04010472]
[1749352910305,1.55756871,105550.0,105540.0,0.04010472]
[1749352910691,1.55756872,105550.0,105540.0,0.04010472]
[1749352911429,1.55756872,105550.0,105540.0,0.04010471]
[1749352911615,1.55756872,105550.0,105540.0,0.0312148]
[1749352911753,1.55091913,105550.0,105540.0,0.0312148]
[1749352912153,1.55756872,105550.0,105540.0,0.0312148]
[1749352912611,1.55091913,105550.0,105540.0,0.04010471]
[1749352912770,1.55756872,105550.0,105540.0,0.04010471]
[1749352912981,1.55083913,105550.0,105540.0,0.04010471]
[1749352913205,1.18404872,105550.0,105540.0,0.0312148]
[1749352913406,1.55083913,105550.0,105540.0,0.0312148]
[1749352913650,1.55748872,105550.0,105540.0,0.04010471]
[1749352914547,1.55083913,105550.0,105540.0,0.04010471]
[1749352914759,1.55748872,105550.0,105540.0,0.04010471]
[1749352915138,1.55083913,105550.0,105540.0,0.0312148]
[1749352915345,1.27100872,105550.0,105540.0,0.04010472]
[1749352915687,1.26435913,105550.0,105540.0,0.0312148]
[1749352915823,1.27100865,105550.0,105540.0,0.0312148]
[1749352916247,1.27100865,105550.0,105540.0,0.04010462]
[1749352916456,1.26435913,105550.0,105540.0,0.04010463]
[1749352916872,1.26435913,105550.0,105540.0,0.0312148]
[1749352917118,1.27100865,105550.0,105540.0,0.04010463]
[1749352917482,1.27100868,105550.0,105540.0,0.04010462]
[1749352917679,1.27100869,105550.0,105540.0,0.04010462]
[1749352917878,1.27100869,105550.0,105540.0,0.0312148]
[1749352918264,1.27100869,105550.0,105540.0,0.04010462]
[1749352918265,1.26435913,105550.0,105540.0,0.04010462]
[1749352918685,1.27100869,105550.0,105540.0,0.0312148]
[1749352918893,1.27100868,105550.0,105540.0,0.0312148]
[1749352919026,1.26435913,105550.0,105540.0,0.04010462]
[1749352919233,1.27100868,105550.0,105540.0,0.04010462]
[1749352919481,1.27100868,105550.0,105540.0,0.0312148]
[1749352919792,1.26435913,105550.0,105540.0,0.0312148]
[1749352919992,1.27100868,105550.0,105540.0,0.04010462]
[1749352920440,1.26435913,105550.0,105540.0,0.04010462]
[1749352920585,1.27100868,105550.0,105540.0,0.04010462]
[1749352921192,1.26435913,105550.0,105540.0,0.04010462]
[1749352921707,1.26435913,105550.0,105540.0,0.04010463]
[1749352921908,1.27100868,105550.0,105540.0,0.04010463]
[1749352922111,1.27100851,105550.0,105540.0,0.04010463]
[1749352922863,1.27100864,105550.0,105540.0,0.04010463]
[1749352923229,1.27100864,105550.0,105540.0,0.04010459]
[1749352923435,1.26435913,105550.0,105540.0,0.0312148]
[1749352923756,1.27100865,105550.0,105540.0,0.0312148]
[1749352923981,1.27100865,105550.0,105540.0,0.04010461]
[1749352924835,1.27100864,105550.0,105540.0,0.04010461]
[1749352925047,1.27100864,105550.0,105540.0,0.0312148]
[1749352925229,1.27100864,105550.0,105540.0,0.04010461]
[1749352926602,1.27100864,105550.0,105540.0,0.04010459]
[1749352926977,1.27100864,105550.0,105540.0,0.0312148]
[1749352927314,1.27100864,105550.0,105540.0,0.04010459]
[1749352927519,1.27100864,105550.0,105540.0,0.0312148]
[1749352927758,1.27100864,105550.0,105540.0,0.04010459]
[1749352928768,1.02112365,105550.0,105540.0,0.04010459]
[1749352928969,1.11473316,105550.0,105540.0,0.07170459]
[1749352929176,1.10808365,105550.0,105540.0,0.0628148]
[1749352929603,1.10808365,105550.0,105540.0,0.07170393]
[1749352929604,1.11473341,105550.0,105540.0,0.07170393]
[1749352930054,1.11473341,105550.0,105540.0,0.07169882]
[1749352930321,1.11472923,105550.0,105540.0,0.0628148]
[1749352931107,1.11472923,105550.0,105540.0,0.07169845]
[1749352931955,1.10808365,105550.0,105540.0,0.07169845]
[1749352932165,1.11472923,105550.0,105540.0,0.0628148]
[1749352932360,1.10808365,105550.0,105540.0,0.07169845]
[1749352932575,1.10808365,105550.0,105540.0,0.60488423]
[1749352932576,0.52670688,105550.0,105540.0,0.60488423]
[1749352932788,0.80593902,105550.0,105540.0,0.62444592]
[1749352933003,0.51058773,105550.0,105540.0,0.73031985]
[1749352933210,0.60698191,105550.0,105540.0,0.73031985]
[1749352933630,0.60698182,105550.0,105540.0,0.73031985]
[1749352933839,0.80593965,105550.0,105540.0,0.73032003]
[1749352934081,0.80593965,105550.0,105540.0,0.74179457]
[1749352934282,0.80593965,105550.0,105540.0,0.73290564]
[1749352935365,0.80593965,105550.0,105540.0,0.69498585]
[1749352935582,0.80593965,105550.0,105540.0,0.69698585]
[1749352938056,0.616456,105550.0,105540.0,0.7064603]
[1749352938272,0.616456,105550.0,105540.0,0.69698585]
[1749352939660,0.80593965,105550.0,105540.0,0.68751131]
[1749352939864,0.616456,105550.0,105540.0,0.68751131]
[1749352940307,0.616456,105550.0,105540.0,0.69698585]
[1749352940728,0.80593965,105550.0,105540.0,0.68751131]
[1749352941146,0.71901965,105550.0,105540.0,0.68751131]
[1749352941356,0.80593965,105550.0,105540.0,0.68751131]
[1749352941581,0.79646592,105550.0,105540.0,0.67803668]
[1749352945570,0.78699192,105550.0,105540.0,0.67803686]
[1749352945876,0.78699192,105550.0,105540.0,0.68751167]
[1749352946435,0.78699192,105550.0,105540.0,0.69698639]
[1749352946984,0.78699192,105550.0,105540.0,0.70646102]
[1749352947675,0.78699192,105550.0,105540.0,0.70646057]
[1749352948798,0.78699192,105550.0,105540.0,0.69016057]
[1749352948998,0.78699192,105550.0,105540.0,0.6712114]
[1749352949374,0.78699192,105550.0,105540.0,0.68068603]
[1749352951468,0.58803382,105550.0,105540.0,0.68068603]
[1749352951684,0.61645546,105550.0,105540.0,0.69016048]
[1749352955039,0.60698137,105550.0,105540.0,0.67486048]
[1749352955879,0.61645555,105550.0,105540.0,0.67486057]
[1749352957542,0.61645555,105550.0,105540.0,0.71278036]
[1749352957753,0.61645555,105550.0,105540.0,0.70330582]
[1749352957936,0.61645555,105550.0,105540.0,0.66538603]
[1749352958147,0.82716565,105550.0,105540.0,0.6559114]
[1749352958352,0.82716565,105550.0,105540.0,0.69383119]
[1749352959987,0.33552565,105550.0,105540.0,0.69383119]
[1749352962439,0.33552565,105550.0,105540.0,0.66539008]
[1749352963835,0.33552565,105550.0,105540.0,0.67486471]
[1749352964806,0.33552565,105550.0,105540.0,0.66539008]
[1749352967859,0.32605183,105550.0,105540.0,0.65591536]
[1749352968520,0.32605183,105550.0,105540.0,0.66539008]
[1749352969568,0.32605183,105550.0,105540.0,0.67486471]
[1749352971232,0.13656818,105550.0,105540.0,0.68433925]
[1749352972816,0.13656818,105550.0,105540.0,0.67486471]
[1749352974990,0.32605183,105550.0,105540.0,0.66539008]
[1749352977856,0.32392785,105550.0,105540.0,0.66539008]
[1749352979788,0.32392785,105550.0,105540.0,0.67486471]
[1749352980571,0.32392785,105550.0,105540.0,0.66539008]
[1749352982759,0.32392785,105550.0,105540.0,0.69383379]
[1749352982995,0.32392785,105550.0,105540.0,0.68435907]
[1749352984210,0.32392785,105550.0,105540.0,0.68330042]
[1749352984382,0.32392785,105550.0,105540.0,0.70224977]
[1749352985588,0.32392785,105550.0,105540.0,0.69277514]
[1749352986626,0.32392785,105550.0,105540.0,0.68330042]
[1749352988204,0.32392785,105550.0,105540.0,0.67382561]
[1749352988644,0.32392785,105550.0,105540.0,0.68330042]
[1749352989088,0.31445385,105550.0,105540.0,0.67382561]
[1749352989291,0.31445385,105550.0,105540.0,0.68330042]
[1749352990942,0.31445385,105550.0,105540.0,0.67382561]
[1749352991305,0.31445385,105550.0,105540.0,0.68330042]
[1749352993862,0.31445385,105550.0,105540.0,0.65485671]
[1749352994371,0.31445385,105550.0,105540.0,0.67382452]
[1749352994582,0.31445385,105550.0,105540.0,0.68329931]
[1749352995256,0.31445385,105550.0,105540.0,0.6738245]
[1749352996300,0.31445385,105550.0,105540.0,0.68329931]
[1749352996927,0.31445385,105550.0,105540.0,0.65485671]
[1749352997353,0.31445385,105550.0,105540.0,0.68329939]
[1749352999346,0.31445385,105550.0,105540.0,0.65485671]
[1749352999548,0.31445385,105550.0,105540.0,0.635907]
[1749352999753,0.31445385,105550.0,105540.0,0.67382476]
[1749352999931,0.31445385,105550.0,105540.0,0.68329966]
[1749353000782,0.31445385,105550.0,105540.0,0.67382476]
[1749353001322,0.30497967,105550.0,105540.0,0.67382485]
[1749353001524,0.30497967,105550.0,105540.0,0.68329984]
[1749353002912,0.30497967,105550.0,105540.0,0.38738485]
[1749353003119,0.30497967,105550.0,105540.0,0.66422977]
[1749353003322,0.30497967,105550.0,105540.0,0.05408889]
[1749353003497,0.64497967,105550.0,105540.0,0.05370999]
[1749353003936,0.64497967,105550.0,105540.0,0.03415642]
[1749353004512,0.64497967,105550.0,105540.0,0.02526722]
[1749353005353,0.64497967,105550.0,105540.0,0.03415651]
[1749353005671,0.64497967,105550.0,105540.0,0.03414804]
[1749353006676,0.64497967,105550.0,105540.0,0.02526722]
[1749353006876,0.64497967,105550.0,105540.0,0.03414804]
[1749353007682,0.64497967,105550.0,105540.0,0.02526722]
[1749353007952,0.64497967,105550.0,105540.0,0.03414755]
[1749353009671,0.64497967,105550.0,105540.0,0.02526722]
[1749353009830,0.64497967,105550.0,105540.0,0.03414525]
[1749353011250,0.64497967,105550.0,105540.0,0.02526722]
[1749353011477,0.64497967,105550.0,105540.0,0.03414471]
[1749353012124,0.64497967,105550.0,105540.0,0.02526722]
[1749353012272,0.64497967,105550.0,105540.0,0.03414471]
[1749353012763,0.64497967,105550.0,105540.0,0.03414323]
[1749353013639,0.64497967,105550.0,105540.0,0.02526722]
[1749353013849,0.64497967,105550.0,105540.0,0.03414323]
[1749353014525,0.64497967,105550.0,105540.0,0.02526722]
[1749353015060,0.64497967,105550.0,105540.0,0.03414323]
[1749353015266,0.64497967,105550.0,105540.0,0.02526722]
[1749353015485,0.64497967,105550.0,105540.0,0.03414323]
[1749353016101,0.64497967,105550.0,105540.0,0.03414324]
[1749353016660,0.64497967,105550.0,105540.0,0.03414277]
[1749353018094,0.64497967,105550.0,105540.0,0.02526722]
[1749353018292,0.64497967,105550.0,105540.0,0.03414277]
[1749353018495,0.64497967,105550.0,105540.0,0.02526722]
[1749353019281,0.64497967,105550.0,105540.0,0.03414277]
[1749353019679,0.64497967,105550.0,105540.0,0.03414241]
[1749353019882,0.64497967,105550.0,105540.0,0.02526722]
[1749353020123,0.64497967,105550.0,105540.0,0.03414241]
[1749353020345,0.64497967,105550.0,105540.0,0.02526722]
[1749353020582,0.64497967,105550.0,105540.0,0.03414241]
[1749353021506,0.64497967,105550.0,105540.0,0.02526722]
[1749353021717,0.64497967,105550.0,105540.0,0.03414241]
[1749353021950,0.64497967,105550.0,105540.0,0.02526722]
[1749353022595,0.64497967,105550.0,105540.0,0.03414241]
[1749353023025,0.64497967,105550.0,105540.0,0.02526722]
[1749353023381,0.64497967,105550.0,105540.0,0.03414241]
[1749353023586,0.64497967,105550.0,105540.0,0.02526722]
[1749353024303,0.64497967,105550.0,105540.0,0.03414241]
[1749353024501,0.64497967,105550.0,105540.0,0.02526722]
[1749353024731,0.64497967,105550.0,105540.0,0.03414324]
[1749353024859,0.64497967,105550.0,105540.0,0.02526722]
[1749353025064,0.64497967,105550.0,105540.0,0.03414324]
[1749353025269,0.64497967,105550.0,105540.0,0.02526722]
[1749353025686,0.64497967,105550.0,105540.0,0.03414324]
[1749353026299,0.64497967,105550.0,105540.0,0.03414318]
[1749353026507,0.64497967,105550.0,105540.0,0.03414322]
[1749353027145,0.64497967,105550.0,105540.0,0.02526722]
[1749353027348,0.64497967,105550.0,105540.0,0.03414508]
[1749353027697,0.64497967,105550.0,105540.0,0.02526722]
[1749353027903,0.64497967,105550.0,105540.0,0.03414508]
[1749353028113,0.64497967,105550.0,105540.0,0.02526722]
[1749353028329,0.64497967,105550.0,105540.0,0.03414508]
[1749353028969,0.64497967,105550.0,105540.0,0.02526722]
[1749353029192,0.64497967,105550.0,105540.0,0.03414611]
[1749353029855,0.64497967,105550.0,105540.0,0.02526722]
[1749353030063,0.64497967,105550.0,105540.0,0.03414611]
[1749353030488,0.64497967,105550.0,105540.0,0.02526722]
[1749353030715,0.64497967,105550.0,105540.0,0.03415687]
[1749353030929,0.64497967,105550.0,105540.0,0.02526722]
[1749353031353,0.64497967,105550.0,105540.0,0.03415687]
[1749353031569,0.64497967,105550.0,105540.0,0.02526722]
[1749353031912,0.64497967,105550.0,105540.0,0.03415687]
[1749353032261,0.64497967,105550.0,105540.0,0.02526722]
[1749353032467,0.64497967,105550.0,105540.0,0.03415687]
[1749353032678,0.64497967,105550.0,105540.0,0.02526722]
[1749353032885,0.64497967,105550.0,105540.0,0.03415687]
[1749353033091,0.64497967,105550.0,105540.0,0.03415686]
[1749353033356,0.64497967,105550.0,105540.0,0.03415687]
[1749353033766,0.64497967,105550.0,105540.0,0.02526722]
[1749353033990,0.64497967,105550.0,105540.0,0.03415683]
[1749353036252,0.64497967,105550.0,105540.0,0.02526722]
[1749353036938,0.64497967,105550.0,105540.0,0.03415682]
[1749353037293,0.64497967,105550.0,105540.0,0.03415679]
[1749353037492,0.64497967,105550.0,105540.0,0.02526722]
[1749353037930,0.64497967,105550.0,105540.0,0.03415679]
[1749353038133,0.64497967,105550.0,105540.0,0.02526722]
[1749353038309,0.64497967,105550.0,105540.0,0.03415679]
[1749353039124,0.64497967,105550.0,105540.0,0.02526722]
[1749353039301,0.64497967,105550.0,105540.0,0.03415678]
[1749353039512,0.64497967,105550.0,105540.0,0.02526722]
[1749353039729,0.64497967,105550.0,105540.0,0.06259953]
[1749353039939,0.64497967,105550.0,105540.0,0.02526722]
[1749353040144,0.64497967,105550.0,105540.0,0.03415678]
[1749353041217,0.64497967,105550.0,105540.0,0.02526722]
[1749353041656,0.64497967,105550.0,105540.0,0.03415678]
[1749353042935,0.64497967,105550.0,105540.0,0.02526722]
[1749353043186,0.64497967,105550.0,105540.0,0.03415678]
[1749353043467,0.64497967,105550.0,105540.0,0.02526722]
[1749353043906,0.64497967,105550.0,105540.0,0.03415678]
[1749353044325,0.56018365,105550.0,105540.0,0.03415678]
[1749353044526,0.64706365,105550.0,105540.0,0.03415678]
[1749353044729,0.64706365,105550.0,105540.0,0.02526722]
[1749353044935,0.64706365,105550.0,105540.0,0.06259956]
[1749353045133,0.64706365,105550.0,105540.0,0.06259936]
[1749353045267,0.64706365,105550.0,105540.0,0.06259931]
[1749353045473,0.64706365,105550.0,105540.0,0.06259929]
[1749353045677,0.64706365,105550.0,105540.0,0.05370999]
[1749353045887,0.64706365,105550.0,105540.0,0.06259938]
[1749353046498,0.64706365,105550.0,105540.0,0.06259809]
[1749353046696,0.64706365,105550.0,105540.0,0.05370999]
[1749353046902,0.64706365,105550.0,105540.0,0.06259809]
[1749353048014,0.64706365,105550.0,105540.0,0.05370999]
[1749353048242,0.64706365,105550.0,105540.0,0.06259809]
[1749353048650,0.64706365,105550.0,105540.0,0.05370999]
[1749353049032,0.64706365,105550.0,105540.0,0.06259809]
[1749353049685,0.64706365,105550.0,105540.0,0.05370999]
[1749353049892,0.64706365,105550.0,105540.0,0.06259773]
[1749353050095,0.64706365,105550.0,105540.0,0.05370999]
[1749353050498,0.64706365,105550.0,105540.0,0.06259773]
[1749353050702,0.64706365,105550.0,105540.0,0.05370999]
[1749353050921,0.64706365,105550.0,105540.0,0.06259773]
[1749353051484,0.64706365,105550.0,105540.0,0.06259755]
[1749353051844,0.64706365,105550.0,105540.0,0.05370999]
[1749353052055,0.64706365,105550.0,105540.0,0.06259755]
[1749353052311,0.64706365,105550.0,105540.0,0.05370999]
[1749353052518,0.64706365,105550.0,105540.0,0.06259755]
[1749353053586,0.64706365,105550.0,105540.0,0.06259746]
[1749353053794,0.64706365,105550.0,105540.0,0.05370999]
[1749353054000,0.64706365,105550.0,105540.0,0.06259746]
[1749353054615,0.64706365,105550.0,105540.0,0.05370999]
[1749353055049,0.64706365,105550.0,105540.0,0.06259742]
[1749353055483,0.64706365,105550.0,105540.0,0.06259447]
[1749353055696,0.64706365,105550.0,105540.0,0.05370704]
[1749353055922,0.64706365,105550.0,105540.0,0.06259447]
[1749353057107,0.64706365,105550.0,105540.0,0.05370704]
[1749353057311,0.64706365,105550.0,105540.0,0.06259447]
[1749353059015,0.64706365,105550.0,105540.0,0.06259444]
[1749353059656,0.64706365,105550.0,105540.0,0.06259442]
[1749353060860,0.64706365,105550.0,105540.0,0.05370704]
[1749353061076,0.64706365,105550.0,105540.0,0.06259442]
[1749353061558,0.64706365,105550.0,105540.0,0.05370704]
[1749353062099,0.64706365,105550.0,105540.0,0.06259442]
[1749353062326,0.64706365,105550.0,105540.0,0.05370704]
[1749353062486,0.64706365,105550.0,105540.0,0.06259442]
[1749353062686,0.64706365,105550.0,105540.0,0.05370704]
[1749353062930,0.64706365,105550.0,105540.0,0.06259442]
[1749353063135,0.64706365,105550.0,105540.0,0.05370704]
[1749353063548,0.64706365,105550.0,105540.0,0.06259442]
[1749353063720,0.64706365,105550.0,105540.0,0.05370704]
[1749353064093,0.64706365,105550.0,105540.0,0.06259445]
[1749353065090,0.64706365,105550.0,105540.0,0.05370704]
[1749353065208,0.64706365,105550.0,105540.0,0.06259445]
[1749353065414,0.64706365,105550.0,105540.0,0.06259453]
[1749353065602,0.64706365,105550.0,105540.0,0.05370704]
[1749353065803,0.64706365,105550.0,105540.0,0.06259453]
[1749353066080,0.64706365,105550.0,105540.0,0.05370704]
[1749353066268,0.64706365,105550.0,105540.0,0.06259453]
[1749353066467,0.64706365,105550.0,105540.0,0.05370704]
[1749353066676,0.64706365,105550.0,105540.0,0.06259453]
[1749353067103,0.64706365,105550.0,105540.0,0.05370704]
[1749353067743,0.64706365,105550.0,105540.0,0.06259466]
[1749353068163,0.64706365,105550.0,105540.0,0.05370704]
[1749353068820,0.64706365,105550.0,105540.0,0.06259466]
[1749353069040,0.64706365,105550.0,105540.0,0.05370704]
[1749353069268,0.64706365,105550.0,105540.0,0.06259466]
[1749353069483,0.64706365,105550.0,105540.0,0.05370704]
[1749353069921,0.64706365,105550.0,105540.0,0.06259466]
[1749353070816,0.64706365,105550.0,105540.0,0.05370704]
[1749353071336,0.64706365,105550.0,105540.0,0.06259498]
[1749353071555,0.64706365,105550.0,105540.0,0.05370704]
[1749353071779,0.64706365,105550.0,105540.0,0.06259498]
[1749353072455,0.64706365,105550.0,105540.0,0.06259506]
[1749353072813,0.64706365,105550.0,105540.0,0.05370704]
[1749353073369,0.64706365,105550.0,105540.0,0.06259506]
[1749353074024,0.64706365,105550.0,105540.0,0.06259632]
[1749353074445,0.64706365,105550.0,105540.0,0.05370704]
[1749353074873,0.64706365,105550.0,105540.0,0.06259632]
[1749353076257,0.64706365,105550.0,105540.0,0.05370704]
[1749353076675,0.64706365,105550.0,105540.0,0.06259632]
[1749353076896,0.64706365,105550.0,105540.0,0.05370704]
[1749353077076,0.64706365,105550.0,105540.0,0.06259632]
[1749353078260,0.64706365,105550.0,105540.0,0.02526722]
[1749353078696,0.64706365,105550.0,105540.0,0.03415668]
[1749353079660,0.64706365,105550.0,105540.0,0.02526722]
[1749353080171,0.64706365,105550.0,105540.0,0.03415668]
[1749353081077,1.13866365,105550.0,105540.0,0.03415668]
[1749353081466,1.13866365,105550.0,105540.0,0.02526722]
[1749353081668,1.13866365,105550.0,105540.0,0.03415668]
[1749353081895,1.13866365,105550.0,105540.0,0.02526722]
[1749353082249,1.13866365,105550.0,105540.0,0.03415549]
[1749353083766,1.13866365,105550.0,105540.0,0.02526722]